[Event "Winter CCCSA-GM 2020"]
[Site "Charlotte"]
[Date "2020.01.17"]
[Round "2.1"]
[White "Mishra, Abhimanyu"]
[Black "Yip, Carissa"]
[Result "1/2-1/2"]
[ECO "B36"]
[WhiteElo "2397"]
[BlackElo "2418"]
[Annotator "ChessBase"]
[PlyCount "50"]
[EventDate "2020.01.17"]
[EventType "tourn"]
[EventCountry "USA"]
[SourceTitle "playchess.com"]
[Source "ChessBase"]
[SourceQuality "1"]
[TimeControl "5400+30"]

1. e4 {[%emt 1:30:30]} c5 {[%emt 1:30:30]} 2. Nf3 {[%emt 0:00:30]} Nc6 {[%emt 0:00:30]} 3. d4 {[%emt 0:00:30]} cxd4 {[%emt 0:00:30]} 4. Nxd4 {[%emt 0:00:30]} g6 {[%emt 0:00:30]} 5. c4 {[%emt 0:00:30]} Nf6 {[%emt 0:00:30]} 6. Nc3 {[%emt 0:00:30]} Nxd4 {[%emt 0:00:30]} 7. Qxd4 {[%emt 0:00:30]} d6 {[%emt 0:00:30]} 8. Be3 {[%emt 0:00:30]} Bg7 {[%emt 0:00:30]} 9. f3 {[%emt 0:00:30]} O-O {[%emt 0:00:30]} 10. Qd2 {[%emt 0:00:30]} Be6 {[%emt 0:00:30]} 11. Rc1 {[%emt 0:00:30]} Qa5 {[%emt 0:00:30]} 12. Be2 {[%emt 0:00:30]} Rfc8 {[%emt 0:00:30]} 13. b3 {[%emt 0:00:30]} a6 {[%emt 0:00:30]} 14. Na4 {[%emt 0:00:30]} Qxd2+ {[%emt 0:00:30]} 15. Kxd2 {[%emt 0:00:30]} Nd7 {[%emt 0:00:30]} 16. g4 {[%emt 0:00:30]} Rcb8 {[%emt 0:00:30]} 17. Nc3 {[%emt 0:00:30]} b5 {[%emt 0:00:30]} 18. Nd5 {[%emt 0:00:30]} Bxd5 {[%emt 0:00:30]} 19. cxd5 {[%emt 0:00:30]} Kf8 {[%emt 0:00:30]} 20. h4 {[%emt 0:00:30]} b4 {[%emt 0:00:30]} 21. f4 {[%emt 0:00:30]} Rc8 {[%emt 0:00:30]} 22. g5 {[%emt 0:00:30]} Bc3+ {[%emt 0:00:30]} 23. Kc2 {[%emt 0:00:30]} Nc5 {[%emt 0:00:30]} 24. Bxc5 {[%emt 0:00:30]} Rxc5 {[%emt 0:00:30]} 25. Bc4 {[%emt 0:00:30]} Bg7 {[%emt 0:00:30]} 1/2-1/2

[Event "Winter CCCSA-GM 2020"]
[Site "Charlotte"]
[Date "2020.01.17"]
[Round "2.3"]
[White "Plotkin, Mark"]
[Black "Korley, Kassa"]
[Result "1-0"]
[ECO "B22"]
[WhiteElo "2395"]
[BlackElo "2416"]
[Annotator "ChessBase"]
[PlyCount "47"]
[EventDate "2020.01.17"]
[EventType "tourn"]
[EventCountry "USA"]
[SourceTitle "playchess.com"]
[Source "ChessBase"]
[SourceQuality "1"]
[TimeControl "5400+30"]

1. e4 {[%emt 1:30:30]} c5 {[%emt 1:30:30]} 2. Nf3 {[%emt 0:00:30]} Nc6 {[%emt 0:00:30]} 3. d4 {[%emt 0:00:30]} cxd4 {[%emt 0:00:30]} 4. c3 {[%emt 0:00:30]} Nf6 {[%emt 0:00:30]} 5. e5 {[%emt 0:00:30]} Nd5 {[%emt 0:00:30]} 6. Bc4 {[%emt 0:00:30]} e6 {[%emt 0:00:30]} 7. cxd4 {[%emt 0:00:30]} d6 {[%emt 0:00:30]} 8. O-O {[%emt 0:00:30]} Nb6 {[%emt 0:00:30]} 9. Bd3 {[%emt 0:00:30]} dxe5 {[%emt 0:00:30]} 10. Nxe5 {[%emt 0:00:30]} Be7 {[%emt 0:00:30]} 11. Nc3 {[%emt 0:00:30]} Bf6 {[%emt 0:00:30]} 12. Ne4 {[%emt 0:00:30]} Nxe5 {[%emt 0:00:30]} 13. Nxf6+ {[%emt 0:00:30]} Qxf6 {[%emt 0:00:30]} 14. dxe5 {[%emt 0:00:30]} Qxe5 {[%emt 0:00:30]} 15. Re1 {[%emt 0:00:30]} Qf6 {[%emt 0:00:30]} 16. Qh5 {[%emt 0:00:30]} Bd7 {[%emt 0:00:30]} 17. Bg5 {[%emt 0:00:30]} Qxb2 {[%emt 0:00:30]} 18. Rad1 {[%emt 0:00:30]} Qxa2 {[%emt 0:00:30]} 19. Re3 {[%emt 0:00:30]} Nd5 {[%emt 0:00:30]} 20. Rf3 {[%emt 0:00:30]} Nf6 {[%emt 0:00:30]} 21. Rxf6 {[%emt 0:00:30]} gxf6 {[%emt 0:00:30]} 22. Bxf6 {[%emt 0:00:30]} Qb3 {[%emt 0:00:30]} 23. Qc5 {[%emt 0:00:30]} Qxd1+ {[%emt 0:00:30]} 24. Bf1 {[%emt 0:00:30]} 1-0

[Event "Winter CCCSA-GM 2020"]
[Site "Charlotte"]
[Date "2020.01.17"]
[Round "2.5"]
[White "Jacobson, Brandon"]
[Black "Panchanathan, Magesh Chandran"]
[Result "1/2-1/2"]
[ECO "E92"]
[WhiteElo "2470"]
[BlackElo "2482"]
[Annotator "ChessBase"]
[PlyCount "39"]
[EventDate "2020.01.17"]
[EventType "tourn"]
[EventCountry "USA"]
[SourceTitle "playchess.com"]
[Source "ChessBase"]
[SourceQuality "1"]
[TimeControl "5400+30"]

1. c4 {[%emt 1:30:30]} e5 {[%emt 1:30:30]} 2. Nc3 {[%emt 0:00:30]} Nf6 {[%emt 0:00:30]} 3. Nf3 {[%emt 0:00:30]} Nc6 {[%emt 0:00:30]} 4. e4 {[%emt 0:00:30]} g6 {[%emt 0:00:30]} 5. d4 {[%emt 0:00:30]} exd4 {[%emt 0:00:30]} 6. Nxd4 {[%emt 0:00:30]} Bg7 {[%emt 0:00:30]} 7. Be3 {[%emt 0:00:30]} O-O {[%emt 0:00:30]} 8. Be2 {[%emt 0:00:30]} Re8 {[%emt 0:00:30]} 9. f3 {[%emt 0:00:30]} Nh5 {[%emt 0:00:30]} 10. Qd2 {[%emt 0:00:30]} d6 {[%emt 0:00:30]} 11. O-O-O {[%emt 0:00:30]} Nxd4 {[%emt 0:00:30]} 12. Bxd4 {[%emt 0:00:30]} Bxd4 {[%emt 0:00:30]} 13. Qxd4 {[%emt 0:00:30]} Qg5+ {[%emt 0:00:30]} 14. Qd2 {[%emt 0:00:30]} Qxd2+ {[%emt 0:00:30]} 15. Kxd2 {[%emt 0:00:30]} Be6 {[%emt 0:00:30]} 16. Nd5 {[%emt 0:00:30]} Bxd5 {[%emt 0:00:30]} 17. cxd5 {[%emt 0:00:30]} c5 {[%emt 0:00:30]} 18. dxc6 {[%emt 0:00:30]} bxc6 {[%emt 0:00:30]} 19. Rc1 {[%emt 0:00:30]} Nf4 {[%emt 0:00:30]} 20. Rc2 {[%emt 0:00:30]} 1/2-1/2

[Event "Winter CCCSA-GM 2020"]
[Site "Charlotte"]
[Date "2020.01.18"]
[Round "3.4"]
[White "Paragua, Mark"]
[Black "Plotkin, Mark"]
[Result "1-0"]
[ECO "B09"]
[WhiteElo "2506"]
[BlackElo "2395"]
[Annotator "ChessBase"]
[PlyCount "87"]
[EventDate "2020.01.17"]
[EventType "tourn"]
[EventCountry "USA"]
[SourceTitle "playchess.com"]
[Source "ChessBase"]
[SourceQuality "1"]
[TimeControl "5400+30"]

1. e4 {[%emt 1:30:30]} g6 {[%emt 1:30:30]} 2. d4 {[%emt 0:00:30]} Bg7 {[%emt 0:00:30]} 3. Nc3 {[%emt 0:00:30]} d6 4. f4 {[%emt 0:00:30]} Nf6 {[%emt 0:01:00]} 5. Nf3 {[%emt 0:00:30]} O-O {[%emt 0:00:30]} 6. Bd3 {[%emt 0:00:30]} c5 {[%emt 0:00:30]} 7. dxc5 {[%emt 0:00:30]} dxc5 {[%emt 0:00:30]} 8. e5 {[%emt 0:00:30]} Nd5 {[%emt 0:00:30]} 9. Nxd5 {[%emt 0:00:30]} Qxd5 {[%emt 0:00:30]} 10. Qe2 {[%emt 0:00:30]} Nc6 {[%emt 0:00:30]} 11. Be4 {[%emt 0:00:30]} Qd8 {[%emt 0:00:30]} 12. c3 {[%emt 0:00:30]} Qc7 {[%emt 0:00:30]} 13. Be3 {[%emt 0:00:30]} b6 {[%emt 0:00:30]} 14. b4 {[%emt 0:00:30]} Bb7 {[%emt 0:00:30]} 15. bxc5 {[%emt 0:00:30]} bxc5 {[%emt 0:00:30]} 16. Rb1 {[%emt 0:00:30]} Rab8 {[%emt 0:00:30]} 17. O-O {[%emt 0:00:30]} Rfd8 {[%emt 0:00:30]} 18. Nd2 {[%emt 0:00:30]} Na5 {[%emt 0:00:30]} 19. Bxb7 {[%emt 0:00:30]} Rxb7 {[%emt 0:00:30]} 20. Qa6 {[%emt 0:00:30]} Rdb8 {[%emt 0:00:30]} 21. Rxb7 {[%emt 0:00:30]} Rxb7 {[%emt 0:00:30]} 22. Ne4 {[%emt 0:00:30]} Qc6 {[%emt 0:00:30]} 23. Qxc6 {[%emt 0:00:30]} Nxc6 {[%emt 0:00:30]} 24. Bxc5 {[%emt 0:00:30]} Rb2 {[%emt 0:00:30]} 25. Rd1 {[%emt 0:00:30]} Rxa2 {[%emt 0:00:30]} 26. Rd7 {[%emt 0:00:30]} Ra4 {[%emt 0:00:30]} 27. Nd2 {[%emt 0:00:30]} Rxf4 {[%emt 0:00:30]} 28. Rc7 {[%emt 0:00:30]} Bxe5 {[%emt 0:00:30]} 29. Rxc6 {[%emt 0:00:30]} Bxc3 {[%emt 0:00:30]} 30. Rc8+ {[%emt 0:00:30]} Kg7 {[%emt 0:00:30]} 31. Rd8 {[%emt 0:00:30]} e6 {[%emt 0:00:30]} 32. Bxa7 {[%emt 0:00:30]} Ra4 {[%emt 0:00:30]} 33. Bc5 {[%emt 0:00:30]} g5 {[%emt 0:00:30]} 34. Kf2 {[%emt 0:00:30]} g4 {[%emt 0:00:30]} 35. Ke3 {[%emt 0:00:30]} f5 {[%emt 0:00:30]} 36. Bd4+ {[%emt 0:00:30]} Bxd4+ {[%emt 0:00:30]} 37. Rxd4 {[%emt 0:00:30]} Ra3+ {[%emt 0:00:30]} 38. Rd3 {[%emt 0:00:30]} Ra1 {[%emt 0:00:30]} 39. Rd7+ {[%emt 0:00:30]} Kg6 {[%emt 0:00:30]} 40. Re7 {[%emt 0:00:30]} Re1+ {[%emt 0:00:30]} 41. Kf2 {[%emt 0:00:30]} Re5 {[%emt 0:00:30]} 42. Nc4 {[%emt 0:00:30]} Rc5 {[%emt 0:00:30]} 43. Rxe6+ {[%emt 0:00:30]} Kf7 {[%emt 0:00:30]} 44. Rc6 1-0

[Event "Winter CCCSA-GM 2020"]
[Site "Charlotte"]
[Date "2020.01.18"]
[Round "4.2"]
[White "Plotkin, Mark"]
[Black "Panchanathan, Magesh Chandran"]
[Result "1/2-1/2"]
[ECO "C44"]
[WhiteElo "2395"]
[BlackElo "2482"]
[Annotator "RC"]
[PlyCount "154"]
[EventDate "2020.01.17"]
[EventType "tourn"]
[EventCountry "USA"]
[SourceTitle "playchess.com"]
[Source "ChessBase"]
[SourceQuality "1"]
[TimeControl "5400+30"]

1. e4 {[%emt 1:30:30]} e5 {[%emt 1:30:30]} 2. Nf3 {[%emt 0:00:30]} Nc6 {[%emt 0:00:30]} 3. d4 {[%emt 0:00:30]} exd4 {[%emt 0:00:30]} 4. c3 {[%emt 0:00:30]} d5 {[%emt 0:00:30]} 5. exd5 {[%emt 0:00:30]} Qxd5 {[%emt 0:00:30]} 6. cxd4 {[%emt 0:00:30]} Nf6 {[%emt 0:00:30]} 7. Nc3 {[%emt 0:00:30]} Bb4 {[%emt 0:00:30]} 8. Bd3 {[%emt 0:00:30]} O-O {[%emt 0:00:30]} 9. O-O {[%emt 0:00:30]} Bxc3 {[%emt 0:00:30]} 10. bxc3 {[%emt 0:00:30]} Bg4 {[%emt 0:00:30]} 11. Be3 {[%emt 0:00:30]} Na5 {[%emt 0:00:30]} 12. Re1 {[%emt 0:00:30]} a6 {[%emt 0:00:30]} 13. Bf4 {[%emt 0:00:30]} Bxf3 {[%emt 0:00:30]} 14. gxf3 {[%emt 0:00:30]} Rfe8 {[%emt 0:00:30]} 15. Re5 {[%emt 0:00:30]} Rxe5 {[%emt 0:00:30]} 16. dxe5 {[%emt 0:00:30]} Rd8 {[%emt 0:00:30]} 17. exf6 {[%emt 0:00:30]} Qxd3 {[%emt 0:00:30]} 18. Qxd3 {[%emt 0:00:30]} Rxd3 {[%emt 0:00:30]} 19. Re1 {[%emt 0:00:30]} h6 {[%emt 0:00:30]} 20. Re3 {[%emt 0:00:30]} Rd1+ {[%emt 0:00:30]} 21. Kg2 {[%emt 0:00:30]} c6 {[%emt 0:00:30]} 22. h4 {[%emt 0:00:30]} Rd5 {[%emt 0:00:30]} 23. Kg3 {[%emt 0:00:30]} c5 {[%emt 0:00:30]} 24. Re8+ {[%emt 0:00:30]} Kh7 {[%emt 0:00:30]} 25. Re7 {[%emt 0:00:30]} gxf6 {[%emt 0:00:30]} 26. Rxf7+ {[%emt 0:00:30]} Kg6 {[%emt 0:00:30]} 27. Rc7 {[%emt 0:00:30]} h5 {[%emt 0:00:30]} 28. Be3 {[%emt 0:00:30]} b6 {[%emt 0:00:30]} 29. Ra7 {[%emt 0:00:30]} Nc4 {[%emt 0:00:30]} 30. Rxa6 {[%emt 0:00:30]} Rd3 {[%emt 0:00:30]} 31. Bf4 {[%emt 0:00:30]} Rxc3 {[%emt 0:00:30]} 32. Bc7 {[%emt 0:00:30]} Rd3 {[%emt 0:00:30]} 33. a4 {[%emt 0:00:30]} Rb3 {[%emt 0:00:30]} 34. Bd8 {[%emt 0:00:30]} Kf7 {[%emt 0:00:30]} 35. Ra7+ {[%emt 0:00:30]} Ke6 {[%emt 0:00:30]} 36. Re7+ {[%emt 0:00:30]} Kd5 {[%emt 0:00:30]} 37. Rh7 {[%emt 0:00:30]} Ne5 {[%emt 0:00:30]} 38. Rxh5 {[%emt 0:00:30]} c4 {[%emt 0:00:30]} 39. Kg2 {[%emt 0:00:30]} Ke6 {[%emt 0:00:30]} 40. Rh6 {[%emt 0:00:30]} Nd7 {[%emt 0:00:30]} 41. Rh7 {[%emt 0:00:30]} c3 {[%emt 0:00:30]} 42. Re7+ {[%emt 0:00:30]} Kd6 {[%emt 0:00:30]} 43. Re1 {[%emt 0:00:30]} c2 {[%emt 0:00:30]} 44. Be7+ {[%emt 0:00:30]} Kd5 {[%emt 0:00:30]} 45. Rc1 {[%emt 0:00:30]} Rc3 {[%emt 0:00:30]} 46. h5 {[%emt 0:00:30]} Kc4 {[%emt 0:00:30]} 47. h6 {[%emt 0:00:30]} Kb3 {[%emt 0:00:30]} 48. Bd6 {[%emt 0:00:30]} Ne5 {[%emt 0:00:30]} 49. h7 {[%emt 0:00:30]} Rc8 {[%emt 0:00:30]} 50. Be7 {[%emt 0:00:30]} Kb2 {[%emt 0:00:30]} 51. Rxc2+ {[%emt 0:00:30]} Kxc2 {[%emt 0:00:30]} 52. Bxf6 {[%emt 0:00:30]} Nf7 {[%emt 0:00:30]} 53. Kg3 {[%emt 0:00:30]} Ra8 {[%emt 0:00:30]} 54. f4 {[%emt 0:00:30]} Kd3 {[%emt 0:00:30]} 55. Kg4 {[%emt 0:00:30]} Ke4 {[%emt 0:00:30]} 56. f3+ {[%emt 0:00:30]} Ke3 {[%emt 0:00:30]} 57. Kf5 {[%emt 0:00:30]} Kxf3 {[%emt 0:00:30]} 58. Kg6 {[%emt 0:00:30]} Ra7 {[%emt 0:00:30]} 59. f5 {[%emt 0:00:30]} Ke4 {[%emt 0:00:30]} 60. h8=Q {[%emt 0:00:30]} Nxh8+ {[%emt 0:00:30]} 61. Bxh8 {[%emt 0:00:30]} Kd5 {[%emt 0:00:30]} 62. f6 {[%emt 0:00:30]} Ke6 {[%emt 0:00:30]} 63. Bg7 {[%emt 0:00:30]} Rf7 {[%emt 0:00:30]} 64. Kg5 {[%emt 0:00:30]} Rd7 {[%emt 0:00:30]} 65. Kg6 {[%emt 0:00:30]} Rd1 {[%emt 0:00:30]} 66. Bh6 {[%emt 0:00:30]} Rf1 {[%emt 0:00:30]} 67. Bg5 {[%emt 0:00:30]} Rg1 {[%emt 0:00:30]} 68. Kh5 {[%emt 0:00:30]} Rg3 {[%emt 0:00:30]} 69. Kg6 {[%emt 0:00:30]} Rf3 {[%emt 0:00:30]} 70. Kg7 {[%emt 0:00:30]} Rg3 {[%emt 0:00:30]} 71. Kg6 {[%emt 0:00:30]} Rg2 {[%emt 0:00:30]} 72. Kh5 {[%emt 0:00:30]} Rf2 {[%emt 0:00:30]} 73. Be3 {[%emt 0:00:30]} Rh2+ {[%emt 0:00:30]} 74. Kg6 {[%emt 0:00:30]} Rg2+ {[%emt 0:00:30]} 75. Kh5 {[%emt 0:00:30]} Kxf6 {[%emt 0:00:30]} 76. Bxb6 {[%emt 0:00:30]} Kf5 {[%emt 0:00:30]} 77. Kh4 {[%emt 0:00:30]} Rg4+ {[%emt 0:00:30]} 1/2-1/2

[Event "Winter CCCSA-GM 2020"]
[Site "Charlotte"]
[Date "2020.01.18"]
[Round "4.4"]
[White "Jacobson, Brandon"]
[Black "Yu, Jennifer"]
[Result "1/2-1/2"]
[ECO "D12"]
[WhiteElo "2470"]
[BlackElo "2321"]
[Annotator "RC"]
[PlyCount "127"]
[EventDate "2020.01.17"]
[EventType "tourn"]
[EventCountry "USA"]
[SourceTitle "playchess.com"]
[Source "ChessBase"]
[SourceQuality "1"]
[TimeControl "5400+30"]

1. d4 {[%emt 1:30:30]} d5 {[%emt 1:30:30]} 2. c4 {[%emt 0:00:30]} c6 {[%emt 0:00:30]} 3. Nf3 {[%emt 0:00:30]} Nf6 {[%emt 0:00:30]} 4. e3 {[%emt 0:00:30]} Bf5 {[%emt 0:00:30]} 5. Nc3 {[%emt 0:00:30]} e6 {[%emt 0:00:30]} 6. Nh4 {[%emt 0:00:30]} Bg6 {[%emt 0:00:30]} 7. Nxg6 {[%emt 0:00:30]} hxg6 {[%emt 0:00:30]} 8. Qb3 {[%emt 0:00:30]} Qc7 {[%emt 0:00:30]} 9. g3 {[%emt 0:00:30]} Nbd7 {[%emt 0:00:30]} 10. cxd5 {[%emt 0:00:30]} exd5 {[%emt 0:00:30]} 11. Bg2 {[%emt 0:00:30]} Bd6 {[%emt 0:00:30]} 12. O-O {[%emt 0:00:30]} O-O {[%emt 0:00:30]} 13. f3 {[%emt 0:00:30]} Qb6 {[%emt 0:00:30]} 14. Qxb6 {[%emt 0:00:30]} Nxb6 {[%emt 0:00:30]} 15. e4 {[%emt 0:00:30]} Bc7 {[%emt 0:00:30]} 16. e5 {[%emt 0:00:30]} Nfd7 {[%emt 0:00:30]} 17. f4 {[%emt 0:00:30]} f5 {[%emt 0:00:30]} 18. b3 {[%emt 0:00:30]} Rfe8 {[%emt 0:00:30]} 19. h4 {[%emt 0:00:30]} Nf8 {[%emt 0:00:30]} 20. Bh3 {[%emt 0:00:30]} Nc8 {[%emt 0:00:30]} 21. h5 {[%emt 0:00:30]} Ne7 {[%emt 0:00:30]} 22. hxg6 {[%emt 0:00:30]} Nfxg6 {[%emt 0:00:30]} 23. Ne2 {[%emt 0:00:30]} Kf7 {[%emt 0:00:30]} 24. Ba3 {[%emt 0:00:30]} Rh8 {[%emt 0:00:30]} 25. Kg2 {[%emt 0:00:30]} Ke6 {[%emt 0:00:30]} 26. Ng1 {[%emt 0:00:30]} Ng8 {[%emt 0:00:30]} 27. Nf3 {[%emt 0:00:30]} Bd8 {[%emt 0:00:30]} 28. Ne1 Nh6 {[%emt 0:00:30]} 29. Nd3 {[%emt 0:01:00]} b6 {[%emt 0:00:30]} 30. Rac1 {[%emt 0:00:30]} Rc8 {[%emt 0:00:30]} 31. Rc2 {[%emt 0:00:30]} Be7 {[%emt 0:00:30]} 32. Bb2 {[%emt 0:00:30]} Rc7 {[%emt 0:00:30]} 33. b4 {[%emt 0:00:30]} Rhc8 {[%emt 0:00:30]} 34. a4 {[%emt 0:00:30]} Nf8 {[%emt 0:00:30]} 35. Rfc1 {[%emt 0:00:30]} Nd7 {[%emt 0:00:30]} 36. Kf3 {[%emt 0:00:30]} g6 {[%emt 0:00:30]} 37. g4 {[%emt 0:00:30]} fxg4+ {[%emt 0:00:30]} 38. Bxg4+ {[%emt 0:00:30]} Nxg4 {[%emt 0:00:30]} 39. Kxg4 {[%emt 0:00:30]} a5 {[%emt 0:00:30]} 40. bxa5 {[%emt 0:00:30]} bxa5 {[%emt 0:00:30]} 41. Bc3 {[%emt 0:00:30]} Ra7 {[%emt 0:00:30]} 42. Bxa5 {[%emt 0:00:30]} c5 {[%emt 0:00:30]} 43. Bb4 {[%emt 0:00:30]} c4 {[%emt 0:00:30]} 44. Bxe7 {[%emt 0:00:30]} Kxe7 {[%emt 0:00:30]} 45. Rh1 {[%emt 0:00:30]} Rxa4 {[%emt 0:00:30]} 46. Rh7+ {[%emt 0:00:30]} Kd8 {[%emt 0:00:30]} 47. Nc1 {[%emt 0:00:30]} Nf8 {[%emt 0:00:30]} 48. Rf7 {[%emt 0:00:30]} Ke8 {[%emt 0:00:30]} 49. Rb7 Rca8 {[%emt 0:00:30]} 50. Rh2 {[%emt 0:01:00]} R4a7 {[%emt 0:00:30]} 51. Rb5 {[%emt 0:00:30]} Ra5 {[%emt 0:00:30]} 52. Rb7 {[%emt 0:00:30]} R5a7 53. Rxa7 {[%emt 0:00:30]} Rxa7 54. Ne2 {[%emt 0:00:30]} Ra2 {[%emt 0:01:30]} 55. Kf3 {[%emt 0:00:30]} Kf7 {[%emt 0:00:30]} 56. Rh1 {[%emt 0:00:30]} Rd2 {[%emt 0:00:30]} 57. Ra1 {[%emt 0:00:30]} Ne6 {[%emt 0:00:30]} 58. Ra7+ {[%emt 0:00:30]} Kf8 {[%emt 0:00:30]} 59. Ra8+ {[%emt 0:00:30]} Kg7 {[%emt 0:00:30]} 60. Ra7+ {[%emt 0:00:30]} Kf8 {[%emt 0:00:30]} 61. Ra8+ {[%emt 0:00:30]} Kf7 {[%emt 0:00:30]} 62. Ra7+ {[%emt 0:00:30]} Kf8 {[%emt 0:00:30]} 63. Ra8+ {[%emt 0:00:30]} Kf7 {[%emt 0:00:30]} 64. Ra7+ {[%emt 0:00:30]} 1/2-1/2

[Event "Winter CCCSA-GM 2020"]
[Site "Charlotte"]
[Date "2020.01.18"]
[Round "4.5"]
[White "Yip, Carissa"]
[Black "Hong, Andrew"]
[Result "1-0"]
[ECO "B53"]
[WhiteElo "2418"]
[BlackElo "2428"]
[Annotator "RC"]
[PlyCount "97"]
[EventDate "2020.01.17"]
[EventType "tourn"]
[EventCountry "USA"]
[SourceTitle "playchess.com"]
[Source "ChessBase"]
[SourceQuality "1"]
[TimeControl "5400+30"]

1. e4 {[%emt 1:30:30]} c5 {[%emt 1:30:30]} 2. Nf3 {[%emt 0:00:30]} d6 {[%emt 0:00:30]} 3. d4 {[%emt 0:00:30]} cxd4 {[%emt 0:00:30]} 4. Qxd4 {[%emt 0:00:30]} Nc6 {[%emt 0:00:30]} 5. Bb5 {[%emt 0:00:30]} a6 {[%emt 0:00:30]} 6. Bxc6+ {[%emt 0:00:30]} bxc6 {[%emt 0:00:30]} 7. O-O {[%emt 0:00:30]} e5 {[%emt 0:00:30]} 8. Qe3 {[%emt 0:00:30]} Nf6 {[%emt 0:00:30]} 9. c4 {[%emt 0:00:30]} Nd7 {[%emt 0:00:30]} 10. b3 {[%emt 0:00:30]} a5 {[%emt 0:00:30]} 11. Nc3 {[%emt 0:00:30]} Qc7 {[%emt 0:00:30]} 12. Na4 {[%emt 0:00:30]} c5 {[%emt 0:00:30]} 13. Nc3 {[%emt 0:00:30]} Bb7 {[%emt 0:00:30]} 14. Qd3 {[%emt 0:00:30]} Be7 {[%emt 0:00:30]} 15. Bg5 {[%emt 0:00:30]} f6 {[%emt 0:00:30]} 16. Bd2 {[%emt 0:00:30]} Nb6 {[%emt 0:00:30]} 17. Ne1 {[%emt 0:00:30]} a4 {[%emt 0:00:30]} 18. Nc2 {[%emt 0:00:30]} g6 {[%emt 0:00:30]} 19. Ne3 {[%emt 0:00:30]} Bc6 {[%emt 0:00:30]} 20. Rfb1 {[%emt 0:00:30]} axb3 {[%emt 0:00:30]} 21. Rxb3 {[%emt 0:00:30]} Kf7 {[%emt 0:00:30]} 22. h3 {[%emt 0:00:30]} Rhb8 {[%emt 0:00:30]} 23. Rab1 {[%emt 0:00:30]} Bf8 {[%emt 0:00:30]} 24. Kh2 {[%emt 0:00:30]} Nd7 {[%emt 0:00:30]} 25. a4 {[%emt 0:00:30]} Rxb3 {[%emt 0:00:30]} 26. Rxb3 {[%emt 0:00:30]} Qa7 {[%emt 0:00:30]} 27. Nb5 {[%emt 0:00:30]} Bxb5 {[%emt 0:00:30]} 28. axb5 {[%emt 0:00:30]} Nb6 {[%emt 0:00:30]} 29. Nd5 {[%emt 0:00:30]} Kg7 {[%emt 0:00:30]} 30. Nxb6 {[%emt 0:00:30]} Qxb6 {[%emt 0:00:30]} 31. Ra3 {[%emt 0:00:30]} Rxa3 {[%emt 0:00:30]} 32. Qxa3 Be7 {[%emt 0:00:30]} 33. Qa6 {[%emt 0:01:00]} Bd8 {[%emt 0:00:30]} 34. Qc8 {[%emt 0:00:30]} Kf7 {[%emt 0:00:30]} 35. Qd7+ {[%emt 0:00:30]} Be7 {[%emt 0:00:30]} 36. h4 {[%emt 0:00:30]} h5 {[%emt 0:00:30]} 37. f3 {[%emt 0:00:30]} Qb8 {[%emt 0:00:30]} 38. Ba5 {[%emt 0:00:30]} Qa8 {[%emt 0:00:30]} 39. b6 {[%emt 0:00:30]} Qxa5 {[%emt 0:00:30]} 40. b7 Qb4 {[%emt 0:00:30]} 41. Qc8 {[%emt 0:01:00]} Qe1 {[%emt 0:00:30]} 42. b8=Q {[%emt 0:00:30]} Qxh4+ {[%emt 0:00:30]} 43. Qh3 {[%emt 0:00:30]} Qf4+ {[%emt 0:00:30]} 44. Qg3 {[%emt 0:00:30]} Qh6 {[%emt 0:00:30]} 45. Qb7 {[%emt 0:00:30]} f5 {[%emt 0:00:30]} 46. exf5 {[%emt 0:00:30]} gxf5 {[%emt 0:00:30]} 47. Qd5+ {[%emt 0:00:30]} Kf6 {[%emt 0:00:30]} 48. Qh4+ {[%emt 0:00:30]} Kg6 {[%emt 0:00:30]} 49. Qe6+ {[%emt 0:00:30]} 1-0

[Event "Winter CCCSA-GM 2020"]
[Site "Charlotte"]
[Date "2020.01.19"]
[Round "6.4"]
[White "Yip, Carissa"]
[Black "Paragua, Mark"]
[Result "0-1"]
[ECO "B94"]
[WhiteElo "2418"]
[BlackElo "2506"]
[Annotator "RC"]
[PlyCount "114"]
[EventDate "2020.01.17"]
[EventType "tourn"]
[EventCountry "USA"]
[SourceTitle "playchess.com"]
[Source "ChessBase"]
[SourceQuality "1"]
[TimeControl "5400+30"]

1. e4 {[%emt 1:30:30]} c5 {[%emt 1:30:30]} 2. Nf3 {[%emt 0:00:30]} d6 {[%emt 0:00:30]} 3. d4 {[%emt 0:00:30]} cxd4 {[%emt 0:00:30]} 4. Nxd4 {[%emt 0:00:30]} Nf6 {[%emt 0:00:30]} 5. Nc3 {[%emt 0:00:30]} a6 {[%emt 0:00:30]} 6. Bg5 {[%emt 0:00:30]} Nbd7 {[%emt 0:00:30]} 7. Qe2 {[%emt 0:00:30]} h6 {[%emt 0:00:30]} 8. Bh4 {[%emt 0:00:30]} g5 {[%emt 0:00:30]} 9. Bg3 {[%emt 0:00:30]} e6 {[%emt 0:00:30]} 10. O-O-O {[%emt 0:00:30]} Qc7 {[%emt 0:00:30]} 11. h4 {[%emt 0:00:30]} Rg8 {[%emt 0:00:30]} 12. hxg5 {[%emt 0:00:30]} hxg5 {[%emt 0:00:30]} 13. Kb1 {[%emt 0:00:30]} Ne5 {[%emt 0:00:30]} 14. Nf3 {[%emt 0:00:30]} b5 {[%emt 0:00:30]} 15. Nxe5 {[%emt 0:00:30]} dxe5 {[%emt 0:00:30]} 16. Qd2 {[%emt 0:00:30]} Be7 {[%emt 0:00:30]} 17. Bd3 {[%emt 0:00:30]} Bb7 {[%emt 0:00:30]} 18. f3 {[%emt 0:00:30]} O-O-O {[%emt 0:00:30]} 19. Bf2 {[%emt 0:00:30]} Bc5 {[%emt 0:00:30]} 20. Bxc5 {[%emt 0:00:30]} Qxc5 {[%emt 0:00:30]} 21. a4 {[%emt 0:00:30]} b4 {[%emt 0:00:30]} 22. Na2 {[%emt 0:00:30]} a5 {[%emt 0:00:30]} 23. c3 {[%emt 0:00:30]} b3 {[%emt 0:00:30]} 24. Nc1 {[%emt 0:00:30]} Bc6 {[%emt 0:00:30]} 25. Rh6 {[%emt 0:00:30]} Nd7 {[%emt 0:00:30]} 26. Rh7 {[%emt 0:00:30]} Qb6 {[%emt 0:00:30]} 27. Rxf7 {[%emt 0:00:30]} Bxa4 {[%emt 0:00:30]} 28. Qe2 {[%emt 0:00:30]} Nc5 {[%emt 0:00:30]} 29. Bc4 {[%emt 0:00:30]} Rxd1 {[%emt 0:00:30]} 30. Qxd1 Rd8 {[%emt 0:00:30]} 31. Qg1 {[%emt 0:01:00]} Kb8 {[%emt 0:00:30]} 32. Qe3 {[%emt 0:00:30]} Qd6 {[%emt 0:00:30]} 33. Qxg5 {[%emt 0:00:30]} Qd1 {[%emt 0:00:30]} 34. Bd5 {[%emt 0:00:30]} Kc8 {[%emt 0:00:30]} 35. Qe3 {[%emt 0:00:30]} Bc6 {[%emt 0:00:30]} 36. Qh6 {[%emt 0:00:30]} Bxd5 {[%emt 0:00:30]} 37. exd5 {[%emt 0:00:30]} Qc2+ {[%emt 0:00:30]} 38. Ka1 {[%emt 0:00:30]} Na4 {[%emt 0:00:30]} 39. Qxe6+ {[%emt 0:00:30]} Kb8 {[%emt 0:00:30]} 40. Qxe5+ {[%emt 0:00:30]} Ka8 {[%emt 0:00:30]} 41. Ra7+ {[%emt 0:00:30]} Kxa7 {[%emt 0:00:30]} 42. Qc7+ {[%emt 0:00:30]} Ka6 {[%emt 0:00:30]} 43. Qc4+ {[%emt 0:00:30]} Kb7 {[%emt 0:00:30]} 44. Qc6+ {[%emt 0:00:30]} Kb8 {[%emt 0:00:30]} 45. Qb5+ {[%emt 0:00:30]} Ka7 {[%emt 0:00:30]} 46. Qxa5+ {[%emt 0:00:30]} Kb7 {[%emt 0:00:30]} 47. Qb4+ {[%emt 0:00:30]} Nb6 {[%emt 0:00:30]} 48. Nxb3 {[%emt 0:00:30]} Qd1+ {[%emt 0:00:30]} 49. Ka2 {[%emt 0:00:30]} Qxd5 {[%emt 0:00:30]} 50. Kb1 {[%emt 0:00:30]} Qf5+ {[%emt 0:00:30]} 51. Kc1 {[%emt 0:00:30]} Qg5+ {[%emt 0:00:30]} 52. f4 {[%emt 0:00:30]} Qd5 {[%emt 0:00:30]} 53. Kb1 {[%emt 0:00:30]} Qd3+ {[%emt 0:00:30]} 54. Ka2 {[%emt 0:00:30]} Qc4 {[%emt 0:00:30]} 55. Qe7+ {[%emt 0:00:30]} Rd7 {[%emt 0:00:30]} 56. Qa3 {[%emt 0:00:30]} Kb8 {[%emt 0:00:30]} 57. Qf8+ {[%emt 0:00:30]} Nc8 {[%emt 0:00:30]} 0-1